Cogmind - Beta 15 @@@ ROGUE MODE // 2025.05.14 @ 11:36:17 Player: McSaucyNugget Result: Destroyed by LH-YY6(R) with Subdweller Machine Gun Performance ------------- Evolutions (0) 0 Regions Visited (2) 400 Robots Destroyed (20) 100 Value Destroyed (388) 388 Prototype IDs (1) 20 Alien Tech Used (0) 0 Bonus (0) 0 TOTAL SCORE: 908 Bonus ------- None Cogmind --------- Core Integrity 0/250 Matter 53/300 Energy 200/200 System Corruption 5% Temperature Cool (0) Movement Treading (320) Ox2 Location -10/Subcaves Parts ------- > --- POWER (1+1) ------ Subdweller Power Source > --- PROPULSION (2+1) - Light Treads Subdweller Monowheel > --- UTILITY (2+1) ---- High-capacity Storage Unit Rainbow Chip > --- WEAPON (2+1) ----- Subdweller Laser Battle Cannon > --- INVENTORY (20) --- Light Treads Large Storage Unit Medium Matter Pod (0) Sensor Array Signal Interpreter Seismic Detector Propulsion Shielding Propulsion Shielding Medium Armor Plating Medium Armor Plating Medium Armor Plating Hardened Light Armor Plating Hardened Light Armor Plating Peak State ------------ > --- POWER ------------ Subdweller Power Source > --- PROPULSION ------- Light Treads Subdweller Monowheel > --- UTILITY ---------- High-capacity Storage Unit Rainbow Chip > --- WEAPON ----------- Subdweller Laser Battle Cannon > --- INVENTORY -------- Light Treads Large Storage Unit Medium Matter Pod Sensor Array Signal Interpreter Seismic Detector Propulsion Shielding Propulsion Shielding Medium Armor Plating Medium Armor Plating Medium Armor Plating Hardened Light Armor Plating Hardened Light Armor Plating [Rating: 24] Favorites ----------- Power Light Ion Engine Engine Light Ion Engine Propulsion Light Treads Treads Light Treads Wheel Wheel Utility High-capacity Storage Unit Device Seismic Detector Storage High-capacity Storage Unit Processor Rainbow Chip Protection Hardened Light Armor Plating Weapon EM Pulse Gun Energy Gun EM Pulse Gun Ballistic Gun Assault Rifle Ballistic Cannon Battle Cannon Launcher Grenade Launcher Special Weapon Mining Laser Build | -11 -10 -10 ------- Run | Yrd Mat Sub Slots Evolved . | . . . Power . | . . . Propulsion . | . . . Utility . | . . . Weapon . | . . . Parts Attached 24 | 6 7 11 Power 3 | 1 . 2 Engine 3 | 1 . 2 Core . | . . . Reactor . | . . . Propulsion 8 | 2 2 4 Treads 3 | 2 . 1 Leg . | . . . Wheel 5 | . 2 3 Hover . | . . . Flight . | . . . Utility 6 | 1 4 1 Device 1 | . 1 . Storage 3 | 1 2 . Processor 1 | . . 1 Hackware . | . . . Protection 1 | . 1 . Artifact . | . . . Weapon 7 | 2 1 4 Energy Gun 2 | 1 . 1 Energy Cannon . | . . . Ballistic Gun 2 | 1 . 1 Ballistic Cannon 1 | . . 1 Launcher 1 | . 1 . Special Weapon 1 | . . 1 Impact Weapon . | . . . Slashing Weapon . | . . . Piercing Weapon . | . . . Special Melee Weapon . | . . . Unidentified Prototypes 1 | . . 1 Parts Lost 12 | . . 12 Power 2 | . . 2 Propulsion 4 | . . 4 Utility 1 | . . 1 Weapon 5 | . . 5 Highest Loss Streak 8 | . . 8 To Critical Strikes 1 | . . 1 Average Backups 13 | 2 13 15 Power . | . 1 . Propulsion 2 | 1 3 2 Utility 7 | . 6 12 Weapon 1 | . 2 1 Tool/Special . | . . . Unused Backups 12 | . 2 10 Power . | . . . Propulsion 1 | . 1 . Utility 10 | . . 10 Weapon 1 | . 1 . Tool/Special . | . . . Average Slot Usage (%) 87 | . 92 75 Engine 12 | . 14 10 Treads 7 | . 9 4 Wheel 17 | . 18 14 Device 1 | . 2 . Storage 13 | . 14 12 Processor 1 | . . 3 Protection 6 | . 6 7 Energy Gun 11 | . 14 6 Ballistic Gun 6 | . 4 9 Ballistic Cannon 1 | . . 5 Launcher 5 | . 7 2 Peak Build Rating 24 | 6 10 24 Average Rating 9 | 4 8 14 On Entrance 5 | . 6 10 Naked Turns . | . . . Heaviest Build 67 | 12 67 54 Greatest Support 40 | 40 40 26 Greatest Overweight (x) 15 | . 2 15 Average Overweight (x) 1 | . 1 2 Largest Inventory Capacity 20 | 8 20 20 Average Capacity 17 | 7 16 20 Most Carried 20 | 4 20 20 Average Carried 13 | 2 13 15 Final Capacity 20 | 8 20 20 Final Carried 20 | 4 20 13 Class Distribution -------------------- 100% | Mutant Dominant Class ---------------- Mutant | -10/Materials Mutant | -10/Subcaves Resources | -11 -10 -10 ----------- Run | Yrd Mat Sub Matter Collected 522 | 221 71 230 Remotely . | . . . Salvage Created 361 | . 187 174 Parts 28 | . 21 7 Haulers Intercepted . | . . . Recyclers Shooed . | . . . Parts Field Recycled . | . . . Retrieved Matter . | . . . Parts Self-Destructed 7 | . . 7 Prevented . | . . . Kills | -11 -10 -10 ------- Run | Yrd Mat Sub Combat Hostiles Destroyed 12 | . 8 4 Guns 4 | . . 4 AOE 8 | . 8 . Classes Destroyed 7 | . 6 1 Worker 2 | . 2 . Builder 2 | . 2 . Operator 1 | . 1 . Watcher 3 | . 3 . Swarmer 6 | . 6 . Grunt 4 | . 2 2 Subdweller 2 | . . 2 Best Kill Streak 6 | . 6 2 Combat Bots Only 3 | . 3 2 Max Kills in Single Turn 3 | . 3 1 Gunslinging . | . . . Exploded 2 | . 2 . Melee . | . . . Uniques/NPCs Destroyed . | . . . Combat | -11 -10 -10 -------- Run | Yrd Mat Sub Hostile Shots Fired 93 | . 19 74 Missed 21 | . 3 18 Hits 72 | . 16 56 Projectile 72 | . 16 56 Critical Strikes 3 | . . 3 Damage Taken 1279 | . 227 1052 Core 268 | . 33 235 Absorbed by Shields . | . . . Core Remaining (%) 100 | 100 . . Volleys Fired 60 | . 25 35 Largest 2 | . 2 2 Hottest 160 | . 60 160 Shots Fired 86 | . 30 56 Gun 60 | . 17 43 Cannon 8 | . . 8 Launcher 13 | . 13 . Special 5 | . . 5 Kinetic 44 | . 4 40 Thermal 15 | . . 15 Explosive 13 | . 13 . Electromagnetic 14 | . 13 1 Robot Hit Streak 11 | . 4 11 Robot Miss Streak 2 | . 2 2 Penetration Max . | . . . Secondary Targets 1 | . 1 . Max Gunslinging Chain 1 | . 1 . Shots Hit Robots 53 | . 14 39 Core Hits 31 | . 21 10 Critical Kills . | . . . Critical Parts Destroyed . | . . . Critical Strikes . | . . . Melee Attacks . | . . . Impact . | . . . Slashing . | . . . Piercing . | . . . Sneak Attacks . | . . . Combat Hostiles . | . . . Follow-up Attacks . | . . . Damage Inflicted 1289 | . 804 485 Guns 497 | . 126 371 Cannons 114 | . . 114 Explosions 675 | . 675 . Melee . | . . . Ramming 3 | . 3 . Kinetic 372 | . . 372 Thermal 113 | . . 113 Explosive 675 | . 675 . Electromagnetic 126 | . 126 . Impact . | . . . Slashing . | . . . Piercing . | . . . Highest Corruption 5 | . 5 5 Average Corruption 4 | . 4 5 Corruption Purged . | . . . Corruption Blocked . | . . . Effects 18 | . 6 12 Message Errors 5 | . 2 3 Matter Fused 5 | . 2 3 Heat Flow Errors 1 | . . 1 Energy Discharges 1 | . . 1 Data Loss (minor) 1 | . 1 . Misfires 1 | . 1 . Weapon Failures 4 | . . 4 Overload Shots . | . . . Overflow Damage 8 | . 8 . Projectiles . | . . . Explosions 8 | . 8 . Melee . | . . . Knockbacks 2 | . . 2 Impact . | . . . Kinetic 2 | . . 2 Secondary . | . . . Self-Inflicted Damage 71 | . 71 . Shots 3 | . 3 . Rammed . | . . . Targets Rammed 1 | . 1 . Kicked . | . . . Crushed 1 | . 1 . Highest Temperature 274 | . 40 274 Average Temperature 56 | . 15 135 Received Heat Transfer 258 | . 39 219 Siege Activations . | . . . Martial Activations . | . . . Shielding Activations . | . . . Robots Disrupted . | . . . Combat Hostiles . | . . . Robots Corrupted . | . . . Combat Hostiles . | . . . Parts Fried 2 | . 2 . Impact Corruptions . | . . . Robots Melted . | . . . Combat Hostiles . | . . . Parts Melted . | . . . Heat Transferred 150 | . . 150 Parts Sabotaged . | . . . Parts Stolen . | . . . Parts Stripped . | . . . Power Chain Reactions . | . . . Alert | -11 -10 -10 ------- Run | Yrd Mat Sub Maximum Alert Level . | . . . Low Security (%) 100 | 100 100 . Level 1 . | . . . Level 2 . | . . . Level 3 . | . . . Level 4 . | . . . Level 5 . | . . . High Security . | . . . Max Security . | . . . Peak Influence 159 | . 159 . Initial . | . . . Average 58 | . 63 . Influence Increases 385 | . 335 50 Destroy 0b10 Robot/C 200 | . 160 40 Destroy 0b10 Robot/NC 40 | . 40 . Destroy Leader 46 | . 36 10 Disable Machine 15 | . 15 . Destroy Structure 54 | . 54 . Lose Combat Pursuer 30 | . 30 . Influence Decreases 385 | . 256 129 Entered New Map 39 | . . 39 Time Decay 316 | . 256 60 Lost Part 30 | . . 30 Squads Dispatched 2 | . 2 . Investigation 1 | . 1 . Extermination . | . . . Reinforcement 1 | . 1 . Assault . | . . . Garrison . | . . . Intercept . | . . . Searches Triggered . | . . . Construction Impeded . | . . . Haulers Reinforced . | . . . Active Scanning Responses . | . . . Cargo Convoy Interrupts . | . . . Stealth | -11 -10 -10 --------- Run | Yrd Mat Sub Distress Signals 1 | . 1 . Communications Jammed . | . . . Distress Signals . | . . . Times Spotted 22 | . 16 6 Peak Tracking Total 3 | . 3 3 Tactical Retreats 1 | . 1 . Traps | -11 -10 -10 ------- Run | Yrd Mat Sub Traps Triggered 4 | . 4 . Indirectly . | . . . Trap Hack Attempts . | . . . Triggered . | . . . Disarmed . | . . . Reprogrammed . | . . . Reused . | . . . Traps Extracted . | . . . Installed . | . . . Triggered . | . . . Machines | -11 -10 -10 ---------- Run | Yrd Mat Sub Machines Disabled 1 | . 1 . Max in Single Turn 1 | . 1 . Machines Repaired . | . . . Machines Dismantled . | . . . Machines Sabotaged . | . . . Overloaded Fab Kills . | . . . Hacking | -11 -10 -10 --------- Run | Yrd Mat Sub Machines Accessed 2 | . 2 . Terminals 2 | . 2 . Fabricators . | . . . Repair Stations . | . . . Recycling Units . | . . . Scanalyzers . | . . . Garrison Access . | . . . Total Hacks 4 | . 4 . Successful 2 | . 2 . Failed 2 | . 2 . Catastrophic . | . . . Database Lockouts . | . . . Manual . | . . . Terminals 4 | . 4 . Fabricators . | . . . Repair Stations . | . . . Recycling Units . | . . . Scanalyzers . | . . . Garrison Access . | . . . Terminal Hacks 2 | . 2 . Recall Reinforcements 1 | . 1 . Zone Layout 1 | . 1 . Fabricator Hacks . | . . . Repair Station Hacks . | . . . Recycling Unit Hacks . | . . . Scanalyzer . | . . . Garrison Access Hacks . | . . . Unauthorized Hacks . | . . . Terminals . | . . . Fabricators . | . . . Repair Stations . | . . . Recycling Units . | . . . Scanalyzers . | . . . Garrison Access . | . . . Data Cores Recovered . | . . . Used . | . . . Hacking Detections 1 | . 1 . Full Trace Events . | . . . Feedback Events . | . . . Feedback Blocked . | . . . Robot Schematics Acquired . | . . . Robots Built . | . . . Authchips . | . . . Time . | . . . Total Robot Build Rating . | . . . Part Schematics Acquired . | . . . Parts Built . | . . . Authchips . | . . . Time . | . . . Total Part Build Rating . | . . . Parts Repaired . | . . . Time . | . . . Parts Recycled . | . . . Recycled Matter . | . . . Retrieved Matter . | . . . Retrieved Components . | . . . Parts Scanalyzed . | . . . Part Schematics Acquired . | . . . Parts Damaged . | . . . Bothacking | -11 -10 -10 ------------ Run | Yrd Mat Sub Used RIF Installer . | . . . Robots Hacked . | . . . Non-combat . | . . . Combat . | . . . Robot Hacks Applied . | . . . Relay Couplers Released . | . . . Fabnet Peak Effective % . | . . . Robots Rewired . | . . . Allies Hacked . | . . . Hacks Repelled . | . . . Allies | -11 -10 -10 -------- Run | Yrd Mat Sub Total Allies . | . . . Largest Group . | . . . Highest-Rated Group . | . . . Highest-Rated Ally . | . . . Total Orders . | . . . Ally Attacks . | . . . Total Damage . | . . . Kills . | . . . Allies Corrupted . | . . . Allies Melted . | . . . Intel | -11 -10 -10 ------- Run | Yrd Mat Sub Active Infowar (turns) 139 | . 139 . Seismic 139 | . 139 . Robot Analysis Total . | . . . Derelict Logs Recovered . | . . . Drone Launches . | . . . Drone Recoveries . | . . . Exploration | -11 -10 -10 ------------- Run | Yrd Mat Sub Turns Passed 1420 | 92 938 390 Spaces Moved 815 | 51 649 115 Core 3 | 1 . 2 Treads 272 | 50 177 45 Legs . | . . . Wheels 540 | . 472 68 Hover . | . . . Flight . | . . . Fastest Speed 50 | 50 105 110 Average Speed 141 | 157 128 213 Slowest Speed 800 | 160 240 800 Overloaded Moves . | . . . Propulsion Burnouts . | . . . Robots Hopped . | . . . Potential Cave-ins . | . . . Cave-ins Triggered . | . . . Exploration Rate (%) 30 | 4 82 5 Regions Visited 2 Branch Regions 1 Pre-discovered Areas . | . . . Known Exits Taken . | . . . Unknown Exits Taken 2 | 1 1 . Scrap Searched . | . . . Spaces Dug . | . . . Terrain Destroyed 61 | . 61 . Melee . | . . . Projectile . | . . . AOE 61 | . 61 . Terrain Rammed . | . . . Walls Destroyed . | . . . Machines Disabled . | . . . Actions | -11 -10 -10 --------- Run | Yrd Mat Sub Total 972 | 60 728 184 Wait 36 | . 19 17 Move 813 | 50 648 115 Hop . | . . . Pick Up 22 | 4 18 . Fast Attach 14 | 6 3 5 Attach 10 | . 3 7 Detach 5 | . 5 . Swap 7 | . 2 5 Drop 4 | . 4 . Fire 60 | . 25 35 Melee . | . . . Ram . | . . . Kick . | . . . Crush 1 | . 1 . Escape Stasis . | . . . Rewire . | . . . Trap . | . . . Miscellaneous . | . . . Route ------- -11/Scrapyard -10/Materials (discovered 5 exits: [*Mat x2] / [*Min x2] / [*Sub]) -10/Subcaves History --------- Turn | Location | Event 7 | -11/Scrapyard | Discovered new exit (range 15) 93 | -11/Scrapyard | Entered Materials 317 | -10/Materials | Build established: Mutant 451 | -10/Materials | Discovered new exit (range 13) 557 | -10/Materials | Discovered new exit (range 12) 777 | -10/Materials | Discovered new exit (range 16) 977 | -10/Materials | Discovered new exit (range 16) 1002 | -10/Materials | Discovered new exit (range 5) 1031 | -10/Materials | Entered Subcaves 1032 | -10/Subcaves | Approached by a straggling Scientist 1136 | -10/Subcaves | Lost 4 parts (1p2n1w) 1181 | -10/Subcaves | A Subdweller sparked back to life 1181 | -10/Subcaves | A Subdweller sparked back to life 1181 | -10/Subcaves | A Subdweller sparked back to life 1207 | -10/Subcaves | Core integrity fell below 50% 1217 | -10/Subcaves | Core integrity fell below 20% 1257 | -10/Subcaves | Lost 8 parts (1p2n1u4w) 1277 | -10/Subcaves | Found Prototype Processor 1277 | -10/Subcaves | Identified Rainbow Chip 1278 | -10/Subcaves | Attached Rainbow Chip, gained temporary slots: Power, Propulsion, Utility, Weapon 1421 | -10/Subcaves | Destroyed by LH-YY6(R) with Subdweller Machine Gun Last Messages --------------- 01260_ Acquired 42 matter. 01269_ Acquired Sub. Power Source. 01275_ Subatomizers dissect the Disposable Heat Sink. 01277_ Acquired Prototype Processor. 01277_ Identified Rainbow Chip. 01278_ Core temporarily expanded with Power slot. 01278_ Core temporarily expanded with Propulsion slot. 01278_ Core temporarily expanded with Utility slot. 01278_ Core temporarily expanded with Weapon slot. 01281_ Acquired 2 matter. 1Y-LHN(c): "I think it's somewhere northwest of here" 01286_ Subatomizers dissect the Disposable Heat Sink. 01309_ Q>F9CE#>47>41RPJ0FD#TEH0CRROYFWQB8#,%&X 01311_ Subatomizers dissect the Disposable Heat Sink. 1Y-LHN(c): "I think it's somewhere northwest of here" 01368_ FCQB0UY5FK8|7JQ94K79=K9MK 1Y-LHN(c): "I think it's somewhere west of here" 01401_ System corrupted: Matter fused (-10). 01415_ LH-YY6(R) knocked back. 01420_ System corrupted: Matter fused (-10). Map ----- +----------------------------------------------------+ | ?????????????????????????????????????????????????? | | ?????????????????????????????????????????????????? | | ?????????????????????????????????????????????????? | | ?????????????????????????????????????????????????? | | ?????????????????????????????????????????????????? | | ?????????????????????????????????????????????????? | | ?????????????????????????????????????????????????? | | ?????????????????????????????????????????????????? | | ?????????????????????????????????????????????????? | | ?????????????????????????????????????????????????? | | ?????????????????????????????????????????????????? | | ?????????????????????????????????????????????????? | | ?????????????????????????????????????????????????? | | ?????????????????????????????????????????????????? | | ?????????????????????????????????"???????????????? | | ??????????????????????????????? ????????????????? | | ???????????????????????????????" ????????????????? | | ?????????????????????????????? ?????????????????? | | ??????????????????????????#### ??????????????????? | | ?????????????????????????? # #??????????????????? | | ?????????????????????????? #??????????????????? | | ??????????????????????????"" #??????????????????? | | ????????????????????????## "#??????????????????? | | ????????????????????????#R% "???????????????????? | | ????????????????????##### "?????????????????????? | | ????????????????????# # @#??????????????????????? | | ????????????????????# "#??????????????????????? | | ????????????????????# ""#??????????????????????? | | ????????????????????# # """"????????????????????? | | ????????????????????#c#### #???????????????????? | | ??????????????????### ##?####???????????????????? | | ?????????????????## ##???????????????????????? | | ?????????????????# #???????????????????????? | | ?????????????????# #???????????????????????? | | ?????????????????# #???????????????????????? | | ?????????????????# #???????????????????????? | | ?????????????????# ##????? #???????????????? | | ????????????????## #### #???????????????? | | ????????????????# #???????????????? | | ????????????????## #??????????????? | | ?????????????????## ### #### "????????????? | | ??????????????????# #??##????? ""????????????? | | ??????????????????# ##???????????????????????? | | ??????????????????# ####????????????????????? | | ??????????????????# #????????????????????? | | ?????????????????## #???????????????????? | | ????????????????## #### #??????????????????? | | ??????????????### ###?# #?????????????????? | | ?????????????## #?? #????????????????? | | ?????????###?# #?? ???????????????? | +----------------------------------------------------+ Best States ------------- Heat Dissipation 25 Energy Generation 15 Energy Capacity 250 Matter Stores 261 Matter Capacity 300 Sight Range 16 Terrain Scan Density 10 Armor Coverage 150 Evasion (%) 40 Recoil Reduction 2 Item Schematics ----------------- None Robot Schematics ------------------ None Fabricated ------------ Nothing Repaired ---------- Nothing Alien Tech Used ----------------- None Achievements -------------- None Challenges ------------ None Game ------ Seed ElectronSuperchargedReactor Manual? 0 Play Time 00:10:44 Cumulative 41.6 hours Start 2025.05.14 @ 11:27:44 End 2025.05.14 @ 11:36:17 Sessions 1 Manual Loads 0 Difficulty Rogue Special Mode None Game No. 30 Rogue 30 Adventurer 0 Explorer 0 Win Type - Total 4 Types 2/0/1/0/1/0/0/0/0/0 Lore% 30 Gallery% 37 Achievement% 47 Wizard Run 0 Options --------- Layout 0 ASCII 0 Keyboard 1 Movement Vi Keybinds 0 Fullscreen 2 Font 18/SmallcapsGlow Map View 76x50 Zoom Use 0% Tactical HUD 1 Map Filters NONE Filters NONE Steam 1 RUN: ca0792d0-1da9-4582-88ab-aaa728c39c5c